bitfinex/quotes_SOLUSD_20250308
["timestamp","ask_amount","ask_price","bid_price","bid_amount"]
[1741419221384,21.13747472,139.43,139.37,21.13747472]
[1741419221684,27.31147472,139.44,139.38,21.13747472]
[1741419221882,21.13747472,139.42,139.37,11.9]
[1741419222084,21.13747472,139.41,139.37,11.9]
[1741419222404,34.48317472,139.44,139.37,40.21257472]
[1741419222574,27.31147472,139.44,139.37,40.21257472]
[1741419223189,6.174,139.44,139.39,21.13747472]
[1741419223406,34.48317472,139.44,139.37,28.31257472]
[1741419223592,27.31147472,139.44,139.38,21.13747472]
[1741419223895,21.13747472,139.45,139.38,28.31187472]
[1741419224110,21.16747472,139.46,139.39,21.13747472]
[1741419224407,21.16747472,139.46,139.39,33.03747472]
[1741419224897,21.13747472,139.43,139.38,6.34]
[1741419225105,21.13747472,139.45,139.38,39.37747472]
[1741419225303,21.13747472,139.44,139.38,39.37747472]
[1741419225803,21.13747472,139.44,139.38,46.55207472]
[1741419226009,21.13747472,139.45,139.38,46.55207472]
[1741419226187,21.13747472,139.44,139.38,46.55207472]
[1741419226785,21.13747472,139.44,139.38,6.34]
[1741419227015,21.13747472,139.45,139.38,46.55187472]
[1741419227219,21.13747472,139.45,139.38,46.55197472]
[1741419227413,21.13747472,139.45,139.39,21.13747472]
[1741419227588,28.33797472,139.46,139.4,21.13747472]
[1741419227974,7.2005,139.46,139.4,33.03747472]
[1741419228176,7.2006,139.46,139.4,11.9]
[1741419228381,7.2006,139.46,139.4,33.03747472]
[1741419228382,7.2009,139.46,139.4,33.03747472]
[1741419228797,0.03,139.46,139.41,21.13747472]
[1741419228991,0.03,139.46,139.42,22.76247472]
[1741419229405,0.03,139.46,139.42,1.625]
[1741419229795,0.03,139.46,139.42,22.76247472]
[1741419229992,0.03,139.46,139.42,34.66247472]
[1741419230216,0.03,139.46,139.42,13.525]
[1741419230586,0.03,139.46,139.42,34.66247472]
[1741419231601,0.03,139.46,139.43,39.78712358]
[1741419231912,0.03,139.46,139.43,46.14712358]
[1741419232083,0.03,139.46,139.44,21.13747472]
[1741419232285,0.03,139.46,139.45,39.78712358]
[1741419232712,0.03,139.46,139.45,59.13701369]
[1741419232913,0.03,139.47,139.45,59.13701369]
[1741419233102,0.03,139.47,139.46,39.78712358]
[1741419233292,0.03,139.49,139.48,18.64964886]
[1741419233516,0.03,139.49,139.48,27.49747472]
[1741419233708,0.03,139.49,139.44,11.77]
[1741419233910,0.03,139.49,139.44,32.90747472]
[1741419234534,0.03,139.49,139.45,39.78712358]
[1741419234834,0.03,139.49,139.46,21.13747472]
[1741419235135,0.03,139.49,139.47,21.13747472]
[1741419235333,0.03,139.49,139.48,52.41951318]
[1741419235542,0.03,139.49,139.48,64.18951318]
[1741419236325,0.03,139.49,139.48,72.43383134]
[1741419236514,0.03,139.5,139.49,24.89164886]
[1741419236739,0.03,139.5,139.49,71.50620805]
[1741419236919,0.03,139.5,139.49,70.43151318]
[1741419237628,0.03,139.52,139.5,18.64964886]
[1741419237832,0.03,139.52,139.51,58.81951318]
[1741419238020,0.03,139.52,139.51,99.7572775]
[1741419238336,0.03,139.56,139.55,30.38964886]
[1741419238539,0.03,139.56,139.55,148.25174888]
[1741419238746,0.03,139.56,139.55,147.17761318]
[1741419239307,0.03,139.61,139.56,18.64964886]
[1741419239535,0.03,139.61,139.57,6.4]
[1741419239936,33.76986432,139.59,139.53,33.76986432]
[1741419240117,33.76986432,139.59,139.53,45.50986432]
[1741419240326,0.03,139.6,139.56,33.76986432]
[1741419240645,7.1934,139.6,139.56,11.74]
[1741419240936,33.76986432,139.58,139.51,128.52796432]
[1741419241141,33.76986432,139.55,139.49,51.90986432]
[1741419241313,33.76986432,139.55,139.49,18.14]
[1741419241514,33.76986432,139.55,139.49,11.74]
[1741419242130,40.93616432,139.55,139.49,45.50986432]
[1741419242343,7.1663,139.55,139.49,45.50986432]
[1741419243023,33.76986432,139.54,139.49,11.74]
[1741419243224,33.76986432,139.53,139.49,11.74]
[1741419243746,33.76986432,139.52,139.47,11.74]
[1741419244240,33.76986432,139.53,139.47,45.50986432]
[1741419245439,33.76986432,139.51,139.44,45.50986432]
[1741419245750,32.82450119,139.49,139.44,11.74]
[1741419246044,33.76986432,139.5,139.44,11.74]
[1741419246454,33.76986432,139.49,139.43,13.3529]
[1741419246920,33.76986432,139.49,139.43,11.74]
[1741419247123,17.919,139.52,139.42,11.74]
[1741419247124,33.76986432,139.47,139.42,11.74]
[1741419247443,33.76986432,139.47,139.41,11.74]
[1741419247750,33.76986432,139.46,139.41,11.74]
[1741419248850,7.171,139.45,139.41,11.74]
[1741419249246,33.76986432,139.44,139.41,11.74]
[1741419249547,33.76986432,139.44,139.38,115.30286432]
[1741419249548,33.76986432,139.43,139.38,11.773]
[1741419250046,33.76986432,139.44,139.38,11.773]
[1741419250825,33.76986432,139.43,139.38,11.773]
[1741419251028,7.1725,139.42,139.38,11.773]
[1741419251933,33.76986432,139.41,139.38,0.033]
[1741419253037,7.1731,139.41,139.38,0.033]
[1741419254350,40.94296432,139.41,139.38,0.033]
[1741419255740,33.76986432,139.4,139.38,0.033]
[1741419256755,33.76986432,139.39,139.38,0.033]
[1741419257853,40.94396432,139.39,139.38,0.033]
[1741419258434,6.4,139.4,139.38,0.033]
[1741419258856,33.76986432,139.43,139.38,0.033]
[1741419259730,33.76986432,139.42,139.38,0.033]
[1741419263156,33.76986432,139.44,139.38,45.54286432]
[1741419263335,39.92186432,139.45,139.38,45.54286432]
[1741419263543,39.92186432,139.45,139.39,33.76986432]
[1741419264059,33.76986432,139.44,139.38,45.54286432]
[1741419265254,40.94186432,139.44,139.38,52.71736432]
[1741419266163,33.76986432,139.45,139.39,35.37106432]
[1741419266352,40.94046432,139.46,139.4,33.76986432]
[1741419266540,40.94046432,139.46,139.4,45.50986432]
[1741419267247,40.94046432,139.46,139.4,52.68296432]
[1741419267556,7.6479,139.49,139.4,52.68296432]
[1741419267557,33.76986432,139.49,139.43,33.76986432]
[1741419267870,33.76986432,139.49,139.43,45.50986432]
[1741419268041,33.76986432,139.47,139.43,11.74]
[1741419269966,33.76986432,139.49,139.43,52.68166432]
[1741419270142,33.76986432,139.5,139.44,33.76986432]
[1741419270342,33.76986432,139.46,139.43,11.74]
[1741419270542,33.76986432,139.46,139.4,59.06336432]
[1741419271261,40.94076432,139.46,139.4,59.06336432]
[1741419271469,33.76986432,139.45,139.4,18.12]
[1741419271772,40.94076432,139.46,139.4,11.74]
[1741419271977,24.3251,139.47,139.41,33.76986432]
[1741419271978,13.5701,139.47,139.41,33.76986432]
[1741419272473,33.76986432,139.48,139.42,33.76986432]
[1741419272778,33.76986432,139.46,139.41,6.4]
[1741419273442,40.94036432,139.46,139.41,6.4]
[1741419273871,33.76986432,139.45,139.41,6.4]
[1741419274382,33.76986432,139.43,139.4,11.74]
[1741419274685,33.76986432,139.43,139.39,1.6012]
[1741419275047,33.76986432,139.45,139.39,42.54506432]
[1741419275246,40.94036432,139.46,139.4,33.76986432]
[1741419275463,40.94036432,139.46,139.4,45.50986432]
[1741419275775,33.76986432,139.45,139.4,11.74]
[1741419276278,33.76986432,139.45,139.4,18.9134]
[1741419277473,40.94086432,139.45,139.4,11.74]
[1741419278574,33.76986432,139.44,139.4,11.74]
[1741419279278,21.13485053,139.44,139.4,11.74]
[1741419279771,7.172,139.43,139.4,11.74]
[1741419280075,7.172,139.43,139.39,1.6012]
[1741419284580,7.172,139.43,139.38,28.34245053]
[1741419284790,21.13485053,139.39,139.38,0.033]
[1741419286671,28.30895053,139.39,139.38,0.033]
[1741419287761,34.79915053,139.39,139.38,0.0001]
[1741419287964,41.23915053,139.39,139.38,0.0001]
[1741419290693,34.74895053,139.39,139.38,0.0001]
[1741419291485,27.57485053,139.39,139.38,0.0001]
[1741419292564,34.74895053,139.39,139.38,0.0001]
[1741419292967,28.30895053,139.39,139.38,0.0001]
[1741419298010,46.95859939,139.39,139.38,0.0001]
[1741419298583,129.25859939,139.39,139.38,0.0001]
[1741419299510,129.28859939,139.39,139.38,0.0001]
[1741419299694,150.42344992,139.39,139.38,0.0001]
[1741419299895,129.28859939,139.39,139.38,0.0001]
[1741419300395,158.19914992,139.39,139.38,0.0001]
[1741419300695,18.64964886,139.37,139.35,0.033]
[1741419300888,27.55485053,139.36,139.35,0.033]
[1741419302007,34.73045053,139.36,139.35,0.033]
[1741419305313,27.55485053,139.36,139.35,0.033]
[1741419305699,21.13485053,139.36,139.35,0.033]
[1741419305887,28.31045053,139.36,139.35,0.033]
[1741419309930,46.96009939,139.36,139.35,0.033]
[1741419310117,28.31045053,139.36,139.35,0.033]
[1741419310317,46.96009939,139.36,139.35,0.033]
[1741419310933,52.82331994,139.36,139.35,0.033]
[1741419311428,102.82331994,139.36,139.35,0.0001]
[1741419312002,18.64964886,139.35,139.29,1.6578]
[1741419312199,21.13485053,139.3,139.25,1.6135]
[1741419312402,21.13485053,139.29,139.25,1.6135]
[1741419313300,7.1797,139.28,139.25,1.6135]
[1741419314311,28.31455053,139.28,139.25,1.6135]
[1741419316134,21.13485053,139.28,139.25,1.6135]
[1741419316336,21.13485053,139.3,139.25,8.7948]
[1741419316537,21.13485053,139.31,139.25,29.92965053]
[1741419316833,28.31315053,139.31,139.25,29.92965053]
[1741419317007,21.13485053,139.32,139.26,21.13485053]
[1741419317203,21.13485053,139.34,139.28,21.13485053]
[1741419317406,21.13485053,139.34,139.28,32.87485053]
[1741419318239,28.31155053,139.34,139.28,32.87485053]
[1741419318402,21.13485053,139.33,139.28,11.74]
[1741419319008,28.31205053,139.33,139.28,11.74]
[1741419319233,21.13485053,139.33,139.28,18.9197]
[1741419319425,21.13485053,139.34,139.28,40.05455053]
[1741419319844,21.13485053,139.35,139.29,21.13485053]
[1741419320027,21.13485053,139.35,139.3,1.5805]
[1741419320820,28.31105053,139.35,139.3,1.5805]
[1741419321729,21.13485053,139.34,139.3,1.5805]
[1741419323243,28.31155053,139.34,139.3,1.5805]
[1741419324234,7.1767,139.34,139.3,1.5805]
[1741419324421,28.31155053,139.34,139.3,1.5805]
[1741419325319,21.13485053,139.33,139.3,1.5805]
[1741419326043,28.31155053,139.34,139.3,1.5805]
[1741419326245,7.1767,139.34,139.3,1.5805]
[1741419326548,28.31155053,139.34,139.3,1.5805]
[1741419327343,28.34145053,139.35,139.3,1.5805]
[1741419329319,21.16485053,139.35,139.3,1.5805]
[1741419331440,7.1766,139.34,139.3,1.5805]
[1741419331646,28.31145053,139.34,139.3,1.5805]
[1741419332451,21.13485053,139.33,139.3,1.5805]
[1741419332953,21.13485053,139.32,139.3,1.5805]
[1741419333255,13.54868101,139.32,139.3,1.5805]
[1741419334349,13.54868101,139.33,139.3,1.5805]
[1741419334821,13.54868101,139.33,139.3,1.6135]
[1741419335453,7.1777,139.32,139.3,1.6135]
[1741419335656,7.1777,139.32,139.3,0.033]
[1741419335657,13.54868101,139.31,139.3,0.033]
[1741419337548,20.72638101,139.32,139.3,0.033]
[1741419338644,24.83226045,139.35,139.3,0.033]
[1741419339856,24.83226045,139.35,139.3,7.2117]
[1741419339857,13.57868101,139.35,139.3,7.2117]
[1741419340653,20.75488101,139.35,139.3,7.2117]
[1741419341857,13.57868101,139.35,139.3,7.2117]
[1741419343750,0.03,139.35,139.3,13.58168101]
[1741419344051,0.03,139.35,139.32,13.54868101]
[1741419346153,0.03,139.35,139.31,1.547]
[1741419346154,0.03,139.35,139.33,20.72588101]
[1741419346657,0.03,139.35,139.33,7.1772]
[1741419347340,0.03,139.35,139.33,20.72588101]
[1741419348536,0.03,139.35,139.33,7.1772]
[1741419350072,0.03,139.35,139.31,26.83568101]
[1741419350250,0.03,139.35,139.31,20.465]
[1741419350862,0.03,139.35,139.31,34.01368101]
[1741419355564,0.03,139.35,139.32,13.54868101]
[1741419355774,0.03,139.35,139.34,13.54868101]
[1741419356076,0.03,139.35,139.34,20.72528101]
[1741419356764,0.03,139.35,139.33,7.177]
[1741419357967,0.03,139.35,139.32,38.78628101]
[1741419358477,0.03,139.35,139.32,31.60868101]
[1741419358850,0.03,139.35,139.32,38.78618101]
[1741419359046,0.03,139.35,139.33,0.033]
[1741419359775,0.03,139.35,139.33,13.58168101]
[1741419360266,0.03,139.35,139.34,13.54868101]
[1741419360946,0.03,139.35,139.34,25.28868101]
[1741419361762,0.03,139.35,139.34,32.46528101]
[1741419362863,0.03,139.35,139.34,11.74]
[1741419364078,0.03,139.35,139.34,32.46528101]
[1741419370989,0.03,139.35,139.34,32.49828101]
[1741419371474,0.03,139.35,139.34,51.14792987]
[1741419374790,0.03,139.35,139.34,32.49828101]
[1741419376303,0.03,139.35,139.34,51.14792987]
[1741419384133,0.03,139.35,139.34,32.49828101]
[1741419385689,0.03,139.35,139.34,0.033]
[1741419386589,0.03,139.35,139.34,7.2096]
[1741419390711,0.03,139.35,139.34,18.9496]
[1741419393613,0.03,139.35,139.34,11.773]
[1741419394922,0.03,139.35,139.34,18.9496]
[1741419396227,0.03,139.35,139.34,37.59924886]
[1741419397017,0.0001,139.35,139.34,37.59924886]
[1741419397218,11.25357944,139.43,139.37,18.64964886]
[1741419397535,11.25357944,139.45,139.38,6.28]
[1741419398510,11.25357944,139.45,139.4,18.64964886]
[1741419398730,11.25357944,139.45,139.4,30.38964886]
[1741419398920,11.25357944,139.45,139.4,11.74]
[1741419399736,18.42457944,139.45,139.4,11.74]
[1741419400817,8.268,139.47,139.4,18.9134]
[1741419401518,0.03,139.49,139.41,18.64964886]
[1741419401723,0.03,139.49,139.41,30.38964886]
[1741419401925,0.03,139.49,139.42,2.73024185]
[1741419402123,0.03,139.49,139.44,18.64964886]
[1741419402350,0.03,139.49,139.44,30.38964886]
[1741419402846,0.03,139.49,139.44,11.74]
[1741419405052,0.03,139.49,139.44,18.9115]
[1741419405349,0.03,139.49,139.44,37.56114886]
[1741419405550,0.03,139.49,139.45,6.3]
[1741419406442,0.03,139.49,139.44,11.74]
[1741419408124,7.6038,139.48,139.4,11.74]
[1741419409162,25.095,139.47,139.4,11.74]
[1741419411336,25.095,139.47,139.37,18.02]
[1741419411538,18.64964886,139.46,139.37,11.74]
[1741419411732,18.64964886,139.44,139.35,13.288]
[1741419411933,6.28,139.45,139.35,44.7044]
[1741419412165,6.28,139.45,139.36,18.64964886]
[1741419412961,7.17,139.47,139.36,18.64964886]
[1741419413266,7.17,139.47,139.36,30.38964886]
[1741419413439,7.17,139.47,139.37,7.1751]
[1741419415463,7.17,139.47,139.37,7.1751]
[1741419416168,6.0556,139.48,139.39,1.5872]
[1741419416358,0.03,139.49,139.4,24.94964886]
[1741419416553,0.03,139.49,139.4,26.94964886]
[1741419416882,0.03,139.49,139.42,18.64964886]
[1741419417081,0.03,139.49,139.43,1.5872]
[1741419417267,0.03,139.49,139.44,27.25294886]
[1741419417470,0.03,139.49,139.46,18.64964886]
[1741419417789,0.03,139.49,139.46,30.38964886]
[1741419417989,11.25357944,139.51,139.49,4.735959]
[1741419418179,0.03,139.52,139.49,4.735959]
[1741419418378,7.1975,139.52,139.49,4.735959]
[1741419419659,0.03,139.52,139.49,4.735959]
[1741419420269,0.03,139.52,139.49,11.904459]
[1741419420867,0.03,139.52,139.49,4.735959]
[1741419424293,7.1974,139.52,139.49,4.735959]
[1741419428394,0.03,139.52,139.49,4.735959]
[1741419429806,0.03,139.52,139.49,4.768959]
[1741419432708,7.1974,139.52,139.49,4.768959]
[1741419433213,25.1159,139.52,139.49,4.768959]
[1741419435306,17.9485,139.52,139.49,4.768959]
[1741419439393,0.03,139.52,139.49,4.768959]
[1741419444012,7.1974,139.52,139.49,4.768959]
[1741419445804,0.03,139.52,139.49,4.768959]
[1741419458216,7.1974,139.52,139.49,4.768959]
[1741419460227,0.03,139.52,139.49,4.768959]
[1741419465047,7.1679,139.51,139.49,4.768959]
[1741419469446,18.42147944,139.51,139.49,4.768959]
[1741419470343,11.25357944,139.51,139.49,4.768959]
[1741419471243,18.42147944,139.51,139.49,4.768959]
[1741419472451,7.1679,139.51,139.49,4.768959]
[1741419475465,18.42147944,139.51,139.49,4.768959]
[1741419477040,18.45147944,139.51,139.49,4.768959]
[1741419481767,18.64964886,139.5,139.49,5.9e-05]
[1741419483360,25.81804886,139.5,139.49,5.9e-05]
[1741419485773,71.23287873,139.5,139.44,1.5359]
[1741419486977,52.58322987,139.5,139.44,1.5359]
[1741419487677,25.0931,139.48,139.4,8.1744]
[1741419488175,24.84964886,139.47,139.4,1.5832]
[1741419488476,6.2,139.47,139.4,8.7566]
[1741419490060,7.1705,139.46,139.4,8.7566]
[1741419490385,7.1705,139.46,139.4,8.7896]
[1741419491569,7.1705,139.46,139.4,20.5896]
[1741419495089,7.1705,139.46,139.4,13.4162]
[1741419497093,25.0967,139.46,139.4,13.4162]
[1741419497500,25.0967,139.46,139.4,1.6162]
[1741419498269,18.64964886,139.45,139.4,0.033]
[1741419498694,7.1715,139.44,139.4,0.033]
[1741419498884,31.4021,139.44,139.4,0.033]
[1741419500011,30.9021,139.44,139.4,0.033]
[1741419502801,12.9733,139.44,139.4,0.033]
[1741419507212,6.6715,139.44,139.4,0.033]
[1741419507383,7.1711,139.45,139.4,0.033]
[1741419508999,7.17,139.47,139.4,0.033]
[1741419513919,25.095,139.47,139.4,0.033]
[1741419515125,25.125,139.47,139.4,0.033]
[1741419516595,7.2,139.47,139.4,0.033]
[1741419517125,7.2,139.47,139.41,1.5295]
[1741419518322,7.2,139.47,139.41,8.7023]
[1741419521008,7.2,139.47,139.42,6.1483]
[1741419521009,0.03,139.47,139.42,6.1483]
[1741419521318,0.03,139.49,139.46,18.64964886]
[1741419521514,0.03,139.49,139.46,36.64964886]
[1741419521720,0.03,139.49,139.46,6.2]
[1741419521907,0.03,139.49,139.46,24.84964886]
[1741419522111,0.03,139.49,139.47,6.1483]
[1741419523030,0.03,139.49,139.48,7.1694]
[1741419523814,0.03,139.49,139.48,8.6814]
[1741419524797,0.03,139.49,139.48,1.512]
[1741419538595,0.03,139.49,139.48,15.0188737]
[1741419540494,0.03,139.49,139.46,11.8]
[1741419540698,38.6281737,139.49,139.42,11.8]
[1741419540879,38.6281737,139.49,139.43,13.5068737]
[1741419540880,13.5068737,139.48,139.43,13.5068737]
[1741419541076,13.5068737,139.48,139.42,13.5068737]
[1741419541272,13.5068737,139.47,139.42,13.5068737]
[1741419541489,13.5068737,139.47,139.41,170.4574737]
[1741419541790,13.5068737,139.47,139.42,13.5068737]
[1741419542300,13.5068737,139.46,139.41,170.4574737]
[1741419542597,13.5068737,139.45,139.4,13.5398737]
[1741419542803,7.1715,139.44,139.4,0.033]
[1741419543692,7.1715,139.44,139.4,13.5398737]
[1741419547897,7.171,139.45,139.4,13.5398737]
[1741419548103,88.9685,139.49,139.43,13.5068737]
[1741419548401,13.8374,139.49,139.44,13.5068737]
[1741419549078,27.3442737,139.49,139.4,19.0065]
[1741419549273,0.03,139.47,139.42,13.5068737]
[1741419549474,0.03,139.47,139.43,13.5068737]
[1741419550410,13.5368737,139.47,139.41,13.5068737]
[1741419551480,0.03,139.47,139.42,13.5068737]
[1741419552098,0.03,139.47,139.44,13.5068737]
[1741419552397,0.03,139.47,139.45,13.5068737]
[1741419552999,0.03,139.47,139.44,13.5068737]
[1741419553206,0.03,139.47,139.42,25.3068737]
[1741419554910,7.2,139.47,139.42,25.3068737]
[1741419555607,20.7068737,139.47,139.42,11.8]
[1741419555777,38.6318737,139.47,139.42,11.8]
[1741419555982,13.5068737,139.46,139.42,11.8]
[1741419556383,13.5068737,139.45,139.42,11.8]
[1741419556680,25.125,139.47,139.42,11.8]
[1741419556681,13.5068737,139.46,139.42,11.8]
[1741419556881,13.5068737,139.45,139.4,13.5398737]
[1741419557575,13.5068737,139.45,139.4,0.033]
[1741419557776,13.5068737,139.44,139.4,0.033]
[1741419558810,7.172,139.43,139.4,0.033]
[1741419558996,13.5068737,139.42,139.4,0.033]
[1741419561113,7.173,139.41,139.4,0.033]
[1741419562906,20.6798737,139.41,139.4,0.033]
[1741419565398,88.5,139.43,139.4,0.033]
[1741419565603,20.6793737,139.42,139.4,0.033]
[1741419566317,11.29811393,139.46,139.41,13.5068737]
[1741419566510,42.68903259,139.47,139.42,13.5068737]
[1741419566511,6.675,139.47,139.42,13.5068737]
[1741419566813,0.03,139.47,139.44,7.1715]
[1741419566998,0.03,139.47,139.44,8.7463]
[1741419567403,0.03,139.47,139.46,13.5068737]
[1741419567612,0.03,139.47,139.45,13.5068737]
[1741419567799,0.03,139.47,139.44,15.0816737]
[1741419568314,0.03,139.47,139.44,1.5748]
[1741419569609,0.03,139.47,139.44,22.69487211]
[1741419569808,0.03,139.47,139.45,21.12007211]
[1741419572507,0.03,139.47,139.44,1.5748]
[1741419572716,0.03,139.47,139.42,39.12007211]
[1741419572891,21.15007211,139.47,139.42,32.92007211]
[1741419573093,21.15007211,139.47,139.42,11.8]
[1741419574028,28.29057211,139.46,139.41,1.6956]
[1741419574323,21.12007211,139.45,139.41,0.033]
[1741419575724,21.12007211,139.44,139.41,0.033]
[1741419577609,7.172,139.43,139.41,0.033]
[1741419581738,28.29207211,139.43,139.41,0.033]
[1741419583428,21.12007211,139.45,139.41,0.033]
[1741419583863,90.1981,139.46,139.41,0.033]
[1741419583864,36.18877211,139.46,139.41,0.033]
[1741419584011,13.4369,139.46,139.41,21.15307211]
[1741419584728,34.55697211,139.46,139.41,21.15307211]
[1741419586938,28.29057211,139.46,139.41,21.15307211]
[1741419588045,28.29057211,139.46,139.41,0.033]
[1741419590257,7.1705,139.46,139.41,21.15307211]
[1741419590441,7.2,139.47,139.43,21.12007211]
[1741419590639,7.2,139.47,139.42,21.12007211]
[1741419590952,21.12007211,139.46,139.41,6.233]
[1741419591653,21.12007211,139.46,139.41,27.35307211]
[1741419592156,28.29097211,139.46,139.41,27.35307211]
[1741419593763,28.29097211,139.46,139.41,6.233]
[1741419595841,21.12007211,139.46,139.41,6.233]
[1741419596041,21.12007211,139.46,139.41,13.406]
[1741419596854,28.29057211,139.46,139.41,13.406]
[1741419597163,28.29057211,139.46,139.41,6.233]
[1741419601266,20.6920052,139.46,139.41,6.233]
[1741419602549,7.1705,139.46,139.41,13.406]
[1741419602753,0.03,139.47,139.42,13.5215052]
[1741419603458,0.03,139.47,139.43,7.172]
[1741419604563,0.03,139.47,139.44,15.0387052]
[1741419605462,0.03,139.47,139.44,22.2100052]
[1741419605970,0.03,139.47,139.44,15.0387052]
[1741419607154,0.03,139.47,139.44,1.5172]
[1741419609771,13.5515052,139.47,139.41,33.1239052]
[1741419609962,13.5215052,139.46,139.41,15.1239052]
[1741419610169,13.5215052,139.45,139.41,1.6024]
[1741419610668,13.5215052,139.44,139.41,0.033]
[1741419611978,20.6933052,139.44,139.41,0.033]
[1741419617379,13.5215052,139.43,139.41,0.033]
[1741419618583,7.1725,139.42,139.41,0.033]
[1741419618786,20.6940052,139.42,139.41,0.033]
[1741419620167,39.34365406,139.42,139.41,0.033]
[1741419625897,42.89739837,139.42,139.41,0.033]
[1741419626274,39.34365406,139.42,139.41,0.033]
[1741419636607,82.3,139.43,139.41,0.033]
[1741419636924,11.29811393,139.44,139.41,0.033]
[1741419637128,11.29811393,139.44,139.4,0.033]
[1741419637302,11.29811393,139.44,139.4,13.5545052]
[1741419638121,11.29811393,139.44,139.41,20.6945052]
[1741419638316,88.5,139.46,139.41,20.6945052]
[1741419638630,13.5515052,139.47,139.41,20.6945052]
[1741419638833,13.5515052,139.47,139.42,13.5215052]
[1741419639327,0.03,139.47,139.42,13.5215052]
[1741419639534,0.03,139.47,139.44,15.0414052]
[1741419639826,0.03,139.47,139.44,1.5199]
[1741419640025,13.5515052,139.47,139.44,1.5199]
[1741419640228,13.5215052,139.46,139.44,1.5199]
[1741419640908,20.7217052,139.47,139.44,1.5199]
[1741419645340,13.5215052,139.46,139.44,1.5199]
[1741419645635,20.7217052,139.47,139.44,1.5199]
[1741419645838,0.03,139.47,139.44,1.5199]
[1741419647143,20.7216052,139.47,139.44,1.5199]
[1741419647346,13.5215052,139.46,139.44,1.5199]
[1741419647720,7.171,139.45,139.44,1.5199]
[1741419649952,20.6925052,139.45,139.4,13.3545]
[1741419650130,13.5215052,139.44,139.4,1.5545]
[1741419651549,13.5215052,139.43,139.4,1.5545]
[1741419651732,13.5215052,139.42,139.4,1.5545]
[1741419652240,13.5215052,139.43,139.4,1.5545]
[1741419653151,20.6937052,139.43,139.4,1.5545]
[1741419654732,13.5215052,139.42,139.4,0.033]
[1741419656136,20.6944052,139.42,139.4,0.033]
[1741419657545,7.1721,139.43,139.4,0.033]
[1741419657748,109.1925052,139.45,139.4,0.033]
[1741419657930,26.8925052,139.45,139.4,0.033]
[1741419658130,20.6925052,139.45,139.4,0.033]
[1741419658332,13.5215052,139.44,139.4,0.033]
[1741419660051,20.6933052,139.44,139.4,0.033]
[1741419661355,13.5215052,139.45,139.4,0.033]
[1741419661761,13.5215052,139.44,139.4,0.033]
[1741419662059,13.5215052,139.42,139.4,0.033]
[1741419662259,13.5215052,139.41,139.4,0.033]
[1741419664059,20.6945052,139.41,139.4,0.033]
[1741419670634,19.7215052,139.42,139.4,0.033]
[1741419670948,82.3,139.43,139.4,0.033]
[1741419672164,102.9936052,139.43,139.4,0.033]
[1741419672767,20.6936052,139.43,139.4,0.033]
[1741419673373,20.6931052,139.44,139.4,0.033]
[1741419673756,11.32811393,139.45,139.4,13.5545052]
[1741419674074,0.03,139.45,139.4,13.5545052]
[1741419674274,0.03,139.45,139.41,7.173]
[1741419674677,0.03,139.45,139.42,1.6233]
[1741419674972,0.03,139.45,139.42,15.1448052]
[1741419675164,0.03,139.45,139.42,1.6233]
[1741419675760,13.5515052,139.45,139.42,1.6233]
[1741419678764,0.03,139.45,139.42,1.6233]
[1741419679770,13.5515052,139.45,139.42,1.6233]
[1741419680270,20.7225052,139.45,139.42,1.6233]
[1741419681352,13.5215052,139.43,139.4,0.033]
[1741419681552,13.5215052,139.42,139.4,0.033]
[1741419681754,13.5215052,139.43,139.4,0.033]
[1741419683580,20.6936052,139.43,139.4,0.033]
[1741419684479,13.5215052,139.42,139.4,0.033]